{"text_format":"2","workbook":"xlsx","n_sheets":10,"sheets":["Kompetencemål","Efter klassetrin >>","efter 9. og 10. klassetrin","Efter kompetenceområde >>","Kompetenceområde 1","Kompetenceområde 2","Kompetenceområde 3","Kompetenceområde 4","Kompetenceområde 4 ikke tilknyt","definitioner"],"not_rendered":{"charts":0,"images":1,"macros":0,"external_links":0,"defined_names":12,"comments":0,"pivot_tables":0},"unopened":[],"bounds":{"document_bytes":16777216,"sheet_cells":100000,"run_cost":"one","rows_first":2000,"rows_last":500,"rows_between":2000,"halvings":0,"cell_chars":16384,"cell_head_chars":4096},"cells_cut":0,"cells_raw":0,"read":"whole","date_system":"1900"}

{"sheet":"Kompetencemål","index":0,"n_rows":23,"n_cols":5,"rows_kept":23,"cut":false,"hidden":false,"merged":[[12,1,13,1],[14,1,16,1],[17,1,19,1],[20,1,22,1],[5,2,5,4],[6,2,6,4],[7,2,7,4],[8,2,8,4]]}
[]
[null,"Fag: ","Samfundsfag"]
[]
[null,"Kompetencemål"]
[]
[null,"Kompetenceområde","Efter 9. og 10. klassetrin"]
[null,"Politik","Eleven kan tage stilling til politiske forhold lokalt og globalt og komme med forslag til handlinger"]
[null,"Økonomi","Eleven kan tage stilling til økonomiske forhold og handle i forhold til egen økonomi og samfundsøkonomien"]
[null,"Ung i en verden under forandring","Eleven kan tage stilling til unges udfordringer i en verden under forandring og komme med forslag til handlinger"]
[]
[]
[]
[null,null,"Afslutningsniveau I","Afslutningsniveau II ","Afslutningsniveau III"]
[null,null," (efter 9. kl./ESA)","(efter 10. kl./MSA)"," (fortsætter i gymnasiet)"]
[null,"Taksonomisk niveau I","med hjælp","overvejende selvstændigt","selvstændigt"]
[null,null,"grundlæggende indhold","væsentligt indhold","omfattende indhold"]
[null,null,"forståeligt","entydigt/sikkert/begrundet","differentieret/nuanceret/reflekteret"]
[null,"Taksonomisk niveau II","med hjælp","overvejende selvstændigt","selvstændigt"]
[null,null,"grundlæggende sammenhænge","struktureret","nuanceret/begrundet/reflekteret"]
[null,null,"grundlæggende spørgsmål","målrettede spørgsmål","videregående spørgsmål"]
[null,"Taksonomisk niveau III","ud fra givne kategorier","begrundet/ud fra egne kategorier","differentieret/nuanceret/reflekteret/ud fra egne kategorier"]
[null,null,"ud fra givne standpunkter","ud fra eget standpunkt","ud fra forskellige standpunkter"]
[null,null,"grundlæggende brug af metoder","målrettet brug af metoder","eget udvalg og kombination af metoder"]

{"sheet":"Efter klassetrin >>","index":1,"n_rows":0,"n_cols":0,"rows_kept":0,"cut":false,"hidden":false,"merged":[]}

{"sheet":"efter 9. og 10. klassetrin","index":2,"n_rows":17,"n_cols":16,"rows_kept":17,"cut":false,"hidden":false,"merged":[[14,10,14,11],[14,12,14,13],[14,14,14,15],[12,14,13,15],[11,12,11,13],[11,14,11,15],[11,10,11,11],[14,8,14,9],[11,1,13,1],[11,2,13,2],[11,6,11,7],[11,8,11,9],[11,4,11,5],[14,1,16,1],[14,2,16,2],[14,4,14,5],[14,6,14,7],[7,4,7,15],[8,1,10,1],[8,2,10,2],[8,4,8,5],[8,6,8,7],[8,10,8,11],[8,12,8,13],[8,14,8,15],[8,8,8,9]]}
[]
[null,"Fag: ",{"$f":"Kompetencemål!C2","v":"Samfundsfag"}]
[]
[null,"Færdigheds- og vidensmål"]
[]
[null,"Efter 9. og 10. klassetrin"]
[]
[null,"Kompetenceområde","Kompetencemål","Faser","Færdigheds- og vidensmål"]
[null,"Politik","Eleven kan tage stilling til politiske forhold lokalt og globalt og komme med forslag til handlinger",null,"Demokrati",null,"Det politiske system, retsstat og rettigheder",null,"Politiske partier, ideologier og problemstillinger",null,"Medier og politik",null,"Den Europæiske Union",null,"International politik og globalisering"]
[null,null,null,"1.","Eleven kan identificere demokratiformer og andre styreformer","Eleven har viden om demokrati og andre styreformer","Eleven kan redegøre for politiske beslutningsprocesser på de forskellige forvaltningsniveauer i Danmark og Tyskland","Eleven har viden om det politiske system og beslutningsprocesser på de forskellige forvaltningsniveauer i Danmark og Tyskland","Eleven kan redegøre for ideologisk indhold i politiske udsagn og beslutninger samt i danske og tyske partiers grundholdninger","Eleven har viden om politiske ideologier og om danske og tyske partier og deres grundholdninger","Eleven kan redegøre for hvordan medier kan anvendes i politisk sammenhæng","Eleven har viden om mediers anvendelse i politisk sammenhæng","Eleven kan redegøre for samspil mellem beslutningsprocesser i EU og i Danmark og Tyskland","Eleven har viden om EU's institutioner og udvikling samt beslutninger i EU","Eleven kan redegøre for internationale organisationers rolle i forhold til konflikt og samarbejde i verden","Eleven har viden om internationale organisationer "]
[null,null,null,"2.","Eleven kan analysere og diskutere demokrati","Eleven har viden om demokrati","Eleven kan diskutere sammenhænge mellem demokrati og retsstat ","Eleven har viden om demokrati og retsstat","Eleven kan analysere og diskutere aktuelle politiske problemstillinger i Danmark og Tyskland og politiske aktørers positioner i forhold til disse","Eleven har viden om politiske problemstillinger i Danmark og Tyskland og de politiske aktørers stillingtagen til disse","Eleven kan analysere og diskutere mediernes rolle i den politiske proces","Eleven har viden om mediernes rolle i den politiske proces","Eleven kan analysere og diskutere aktuelle politiske problemstillinger vedrørende EU","Eleven har viden om politiske problemstillinger vedrørende EU ","Eleven kan analysere og diskutere internationale og globale politiske problemstillinger og løsningsforslag ","Eleven har viden om internationale og globale politiske problemstillinger  "]
[null,"Økonomi","Eleven kan tage stilling til økonomiske forhold og handle i forhold til egen økonomi og samfundsøkonomien",null,"Privatøkonomi og forbrugeradfærd",null,"Økonomi og velfærd",null,"Samfundsøkonomiske sammenhænge",null,"Markedsøkonomi og blandingsøkonomi",null,"Økonomisk vækst og bæredygtighed"]
[null,null,null,"1.","Eleven kan redegøre og diskutere for forbrugerens rolle og rettigheder i samfundet","Eleven har viden om forbrugeradfærd, forbrugerroller og forbrugerrettigheder","Eleven kan redegøre for velfærdsmodeller og velfærdsprincipper","Eleven har viden om velfærdsmodeller og velfærdsprincipper","Eleven kan redegøre for og diskutere sammenhænge i det økonomiske kredsløb","Eleven har viden om sammenhænge i det økonomiske kredsløb","Eleven kan med udgangspunkt i begreberne udbud og efterspørgsel redegøre for, hvordan markeder fungerer","Eleven har viden om principper i markedsøkonomien","Eleven kan redegøre for problemstillinger og muligheder vedrørende bæredygtighed og økonomisk vækst","Eleven har viden om bæredygtig udvikling og økonomisk vækst"]
[null,null,null,"2.","Eleven kan tage stilling til egen økonomi og analysere privatøkonomiske problemstillinger og handlemuligheder","Eleven har viden om privatøkonomiske problemstillinger og begreber","Eleven kan analysere og diskutere velfærdsproblematikker i sammenhæng med den økonomiske udvikling og globalisering","Eleven har viden om velfærdsproblematikker og økonomisk udvikling og globalisering","Eleven kan redegøre for og diskutere betydningen af økonomisk globalisering for det danske og tyske arbejdsmarked","Eleven har viden om sammenhængen mellem økonomisk globalisering og erhvervsstrukturer og arbejdsmarkedsforhold i Danmark og Tyskland","Eleven kan analysere og diskutere regulering af markedskræfterne","Eleven har viden om markedsøkonomi og blandingsøkonomi","Eleven kan analysere og diskutere sammenhænge mellem bæredygtighed og økonomisk vækst","Eleven har viden om sammenhænge mellem bæredygtighed og økonomisk vækst"]
[null,"Ung i en verden under forandring","Eleven kan tage stilling til unges udfordringer i en verden under forandring og komme med forslag til handlinger",null,"Familien under forandring",null,"Socialisering",null,"Medier og databeskyttelse",null,"Migration og integration",null,"Demografisk forandring",null,"Social forandring"]
[null,null,null,"1.","Eleven kan redegøre for forskellige familieformer","Eleven har viden om forskellige familieformer","Eleven kan redegøre for forskellige ungdomskulturer og sociale gruppers rolle i socialiseringsprocessen","Eleven har viden om socialisering samt forskellige ungdomskulturer og sociale grupper","Eleven kan redegøre for forhold i forbindelse med sociale netværk og sikkerhed i forbindelse med personlige data","Eleven har viden om sociale netværk og sikkerhed i forbindelse med personlige data","Eleven kan redegøre for forhold i forbindelse med migration samt integration af indvandrere og flygtninge","Eleven har viden om migrationer, samt forhold i forbindelse med integration af indvandrere og flygtninge","Eleven kan redegøre for forhold i forbindelse med forandringer i alders- og befolkningsstrukturen i det danske og det tyske samfund","Eleven har viden om samfundets udvikling i forbindelse med forandringer i alders- og befolknings-strukturen i det danske og det tyske samfund","Eleven kan redegøre for social ulighed og ligeberettigelse mellem kønnene i Danmark og Tyskland","Eleven har viden om social ulighed og ligeberettigelse mellem kønnene i Danmark og Tyskland"]
[null,null,null,"2.","Eleven kan analysere og diskutere forskellige familieformers rolle i samfundet","Eleven har viden om forskellige opfattelser af familieformer i samfundet","Eleven kan analysere og diskutere ungdomskulturers samt sociale gruppers betydning for socialisering og identitetsdannelse","Eleven har viden om socialisering samt ungdomskulturer og sociale gruppers normer og værdier og deres betydning for socialiseringen","Eleven kan analysere og diskutere forhold i forbindelse med sociale netværk og sikkerhed i forbindelse med personlige data","Eleven har viden om sociale netværk og sikkerhed i forbindelse med personlige data","Eleven kan analysere og diskutere forhold i forbindelse med migration samt integration af indvandrere og flygtninge","Eleven har viden om migrationer, samt forhold i forbindelse med integration af indvandrere og flygtninge","Eleven kan analysere og diskutere forhold i forbindelse med forandringer i alders- og befolkningsstrukturen i det danske og det tyske samfund","Eleven har viden om samfundets udvikling i forbindelse med forandringer i alders- og befolknings-strukturen i det danske og det tyske samfund","Eleven kan analysere og diskutere forhold i forbindelse med social ulighed og ligeberettigelse mellem kønnene i Danmark og Tyskland","Eleven har viden om social ulighed og ligeberettigelse mellem kønnene i Danmark og Tyskland"]

{"sheet":"Efter kompetenceområde >>","index":3,"n_rows":0,"n_cols":0,"rows_kept":0,"cut":false,"hidden":true,"merged":[]}

{"sheet":"Kompetenceområde 1","index":4,"n_rows":24,"n_cols":16,"rows_kept":24,"cut":false,"hidden":true,"merged":[[17,12,17,13],[17,14,17,15],[17,4,17,5],[17,6,17,7],[17,8,17,9],[17,10,17,11],[17,2,20,2],[17,1,20,1],[11,12,11,13],[11,14,11,15],[14,1,16,1],[14,2,16,2],[14,4,14,5],[14,6,14,7],[14,8,14,9],[14,10,14,11],[14,12,14,13],[14,14,14,15],[11,1,13,1],[11,2,13,2],[11,4,11,5],[11,6,11,7],[11,8,11,9],[11,10,11,11],[7,4,7,15],[8,1,10,1],[8,2,10,2],[8,4,8,5],[8,6,8,7],[8,8,8,9],[8,10,8,11],[8,12,8,13],[8,14,8,15],[21,10,21,11],[21,12,21,13],[21,14,21,15],[21,1,23,1],[21,2,23,2],[21,4,21,5],[21,6,21,7],[21,8,21,9]]}
[]
[null,"Fag: ",{"$f":"#REF!","v":{"$error":"#REF!"}}]
[]
[null,"Færdigheds- og vidensmål"]
[]
[null,{"$f":"Kompetencemål!$B$7","v":"Politik"}]
[]
[null,"Klassetrin","Kompetencemål","Faser","Færdigheds- og vidensmål"]
[null,"Efter 2. klassetrin",{"$f":"#REF!","v":{"$error":"#REF!"}},null,{"$f":"#REF!","v":{"$error":"#REF!"}},null,{"$f":"#REF!","v":{"$error":"#REF!"}},null,{"$f":"#REF!","v":{"$error":"#REF!"}},null,{"$f":"#REF!","v":{"$error":"#REF!"}},null,{"$f":"#REF!","v":{"$error":"#REF!"}},null,{"$f":"#REF!","v":{"$error":"#REF!"}}]
[null,null,null,"1.",{"$f":"#REF!","v":{"$error":"#REF!"}},{"$f":"#REF!","v":{"$error":"#REF!"}},{"$f":"#REF!","v":{"$error":"#REF!"}},{"$f":"#REF!","v":{"$error":"#REF!"}},{"$f":"#REF!","v":{"$error":"#REF!"}},{"$f":"#REF!","v":{"$error":"#REF!"}},{"$f":"#REF!","v":{"$error":"#REF!"}},{"$f":"#REF!","v":{"$error":"#REF!"}},{"$f":"#REF!","v":{"$error":"#REF!"}},{"$f":"#REF!","v":{"$error":"#REF!"}},{"$f":"#REF!","v":{"$error":"#REF!"}},{"$f":"#REF!","v":{"$error":"#REF!"}}]
[null,null,null,"2.",{"$f":"#REF!","v":{"$error":"#REF!"}},{"$f":"#REF!","v":{"$error":"#REF!"}},{"$f":"#REF!","v":{"$error":"#REF!"}},{"$f":"#REF!","v":{"$error":"#REF!"}},{"$f":"#REF!","v":{"$error":"#REF!"}},{"$f":"#REF!","v":{"$error":"#REF!"}},{"$f":"#REF!","v":{"$error":"#REF!"}},{"$f":"#REF!","v":{"$error":"#REF!"}},{"$f":"#REF!","v":{"$error":"#REF!"}},{"$f":"#REF!","v":{"$error":"#REF!"}},{"$f":"#REF!","v":{"$error":"#REF!"}},{"$f":"#REF!","v":{"$error":"#REF!"}}]
[null,"Efter 4. klassetrin",{"$f":"#REF!","v":{"$error":"#REF!"}},null,{"$f":"#REF!","v":{"$error":"#REF!"}},null,{"$f":"#REF!","v":{"$error":"#REF!"}},null,{"$f":"#REF!","v":{"$error":"#REF!"}},null,{"$f":"#REF!","v":{"$error":"#REF!"}},null,{"$f":"#REF!","v":{"$error":"#REF!"}},null,{"$f":"#REF!","v":{"$error":"#REF!"}}]
[null,null,null,"1.",{"$f":"#REF!","v":{"$error":"#REF!"}},{"$f":"#REF!","v":{"$error":"#REF!"}},{"$f":"#REF!","v":{"$error":"#REF!"}},{"$f":"#REF!","v":{"$error":"#REF!"}},{"$f":"#REF!","v":{"$error":"#REF!"}},{"$f":"#REF!","v":{"$error":"#REF!"}},{"$f":"#REF!","v":{"$error":"#REF!"}},{"$f":"#REF!","v":{"$error":"#REF!"}},{"$f":"#REF!","v":{"$error":"#REF!"}},{"$f":"#REF!","v":{"$error":"#REF!"}},{"$f":"#REF!","v":{"$error":"#REF!"}},{"$f":"#REF!","v":{"$error":"#REF!"}}]
[null,null,null,"2.",{"$f":"#REF!","v":{"$error":"#REF!"}},{"$f":"#REF!","v":{"$error":"#REF!"}},{"$f":"#REF!","v":{"$error":"#REF!"}},{"$f":"#REF!","v":{"$error":"#REF!"}},{"$f":"#REF!","v":{"$error":"#REF!"}},{"$f":"#REF!","v":{"$error":"#REF!"}},{"$f":"#REF!","v":{"$error":"#REF!"}},{"$f":"#REF!","v":{"$error":"#REF!"}},{"$f":"#REF!","v":{"$error":"#REF!"}},{"$f":"#REF!","v":{"$error":"#REF!"}},{"$f":"#REF!","v":{"$error":"#REF!"}},{"$f":"#REF!","v":{"$error":"#REF!"}}]
[null,"Efter 6. klassetrin",{"$f":"#REF!","v":{"$error":"#REF!"}},null,{"$f":"#REF!","v":{"$error":"#REF!"}},null,{"$f":"#REF!","v":{"$error":"#REF!"}},null,{"$f":"#REF!","v":{"$error":"#REF!"}},null,{"$f":"#REF!","v":{"$error":"#REF!"}},null,{"$f":"#REF!","v":{"$error":"#REF!"}},null,{"$f":"#REF!","v":{"$error":"#REF!"}}]
[null,null,null,"1.",{"$f":"#REF!","v":{"$error":"#REF!"}},{"$f":"#REF!","v":{"$error":"#REF!"}},{"$f":"#REF!","v":{"$error":"#REF!"}},{"$f":"#REF!","v":{"$error":"#REF!"}},{"$f":"#REF!","v":{"$error":"#REF!"}},{"$f":"#REF!","v":{"$error":"#REF!"}},{"$f":"#REF!","v":{"$error":"#REF!"}},{"$f":"#REF!","v":{"$error":"#REF!"}},{"$f":"#REF!","v":{"$error":"#REF!"}},{"$f":"#REF!","v":{"$error":"#REF!"}},{"$f":"#REF!","v":{"$error":"#REF!"}},{"$f":"#REF!","v":{"$error":"#REF!"}}]
[null,null,null,"2.",{"$f":"#REF!","v":{"$error":"#REF!"}},{"$f":"#REF!","v":{"$error":"#REF!"}},{"$f":"#REF!","v":{"$error":"#REF!"}},{"$f":"#REF!","v":{"$error":"#REF!"}},{"$f":"#REF!","v":{"$error":"#REF!"}},{"$f":"#REF!","v":{"$error":"#REF!"}},{"$f":"#REF!","v":{"$error":"#REF!"}},{"$f":"#REF!","v":{"$error":"#REF!"}},{"$f":"#REF!","v":{"$error":"#REF!"}},{"$f":"#REF!","v":{"$error":"#REF!"}},{"$f":"#REF!","v":{"$error":"#REF!"}},{"$f":"#REF!","v":{"$error":"#REF!"}}]
[null,"Efter 9. klassetrin",{"$f":"'efter 9. og 10. klassetrin'!C9","v":"Eleven kan tage stilling til politiske forhold lokalt og globalt og komme med forslag til handlinger"},null,{"$f":"'efter 9. og 10. klassetrin'!E9:F9","v":"Demokrati"},null,{"$f":"'efter 9. og 10. klassetrin'!G9:H9","v":"Det politiske system, retsstat og rettigheder"},null,{"$f":"'efter 9. og 10. klassetrin'!K9:L9","v":{"$error":"#VALUE!"}},null,{"$f":"'efter 9. og 10. klassetrin'!M9:N9","v":{"$error":"#VALUE!"}},null,{"$f":"'efter 9. og 10. klassetrin'!O9:P9","v":{"$error":"#VALUE!"}},null,{"$f":"'efter 9. og 10. klassetrin'!#REF!","v":{"$error":"#REF!"}}]
[null,null,null,"1.",{"$f":"'efter 9. og 10. klassetrin'!E10","v":"Eleven kan identificere demokratiformer og andre styreformer"},{"$f":"'efter 9. og 10. klassetrin'!F10","v":"Eleven har viden om demokrati og andre styreformer"},{"$f":"'efter 9. og 10. klassetrin'!G10","v":"Eleven kan redegøre for politiske beslutningsprocesser på de forskellige forvaltningsniveauer i Danmark og Tyskland"},{"$f":"'efter 9. og 10. klassetrin'!H10","v":"Eleven har viden om det politiske system og beslutningsprocesser på de forskellige forvaltningsniveauer i Danmark og Tyskland"},{"$f":"'efter 9. og 10. klassetrin'!I10","v":"Eleven kan redegøre for ideologisk indhold i politiske udsagn og beslutninger samt i danske og tyske partiers grundholdninger"},{"$f":"'efter 9. og 10. klassetrin'!J10","v":"Eleven har viden om politiske ideologier og om danske og tyske partier og deres grundholdninger"},{"$f":"'efter 9. og 10. klassetrin'!K10","v":"Eleven kan redegøre for hvordan medier kan anvendes i politisk sammenhæng"},{"$f":"'efter 9. og 10. klassetrin'!L10","v":"Eleven har viden om mediers anvendelse i politisk sammenhæng"},{"$f":"'efter 9. og 10. klassetrin'!M10","v":"Eleven kan redegøre for samspil mellem beslutningsprocesser i EU og i Danmark og Tyskland"},{"$f":"'efter 9. og 10. klassetrin'!N10","v":"Eleven har viden om EU's institutioner og udvikling samt beslutninger i EU"},{"$f":"'efter 9. og 10. klassetrin'!O10","v":"Eleven kan redegøre for internationale organisationers rolle i forhold til konflikt og samarbejde i verden"},{"$f":"'efter 9. og 10. klassetrin'!P10","v":"Eleven har viden om internationale organisationer "}]
[null,null,null,"2.",{"$f":"'efter 9. og 10. klassetrin'!E11","v":"Eleven kan analysere og diskutere demokrati"},{"$f":"'efter 9. og 10. klassetrin'!F11","v":"Eleven har viden om demokrati"},{"$f":"'efter 9. og 10. klassetrin'!G11","v":"Eleven kan diskutere sammenhænge mellem demokrati og retsstat "},{"$f":"'efter 9. og 10. klassetrin'!H11","v":"Eleven har viden om demokrati og retsstat"},{"$f":"'efter 9. og 10. klassetrin'!I11","v":"Eleven kan analysere og diskutere aktuelle politiske problemstillinger i Danmark og Tyskland og politiske aktørers positioner i forhold til disse"},{"$f":"'efter 9. og 10. klassetrin'!J11","v":"Eleven har viden om politiske problemstillinger i Danmark og Tyskland og de politiske aktørers stillingtagen til disse"},{"$f":"'efter 9. og 10. klassetrin'!K11","v":"Eleven kan analysere og diskutere mediernes rolle i den politiske proces"},{"$f":"'efter 9. og 10. klassetrin'!L11","v":"Eleven har viden om mediernes rolle i den politiske proces"},{"$f":"'efter 9. og 10. klassetrin'!M11","v":"Eleven kan analysere og diskutere aktuelle politiske problemstillinger vedrørende EU"},{"$f":"'efter 9. og 10. klassetrin'!N11","v":"Eleven har viden om politiske problemstillinger vedrørende EU "},{"$f":"'efter 9. og 10. klassetrin'!O11","v":"Eleven kan analysere og diskutere internationale og globale politiske problemstillinger og løsningsforslag "},{"$f":"'efter 9. og 10. klassetrin'!P11","v":"Eleven har viden om internationale og globale politiske problemstillinger  "}]
[null,null,null,"3.",{"$f":"'efter 9. og 10. klassetrin'!#REF!","v":{"$error":"#REF!"}},{"$f":"'efter 9. og 10. klassetrin'!#REF!","v":{"$error":"#REF!"}},{"$f":"'efter 9. og 10. klassetrin'!#REF!","v":{"$error":"#REF!"}},{"$f":"'efter 9. og 10. klassetrin'!#REF!","v":{"$error":"#REF!"}},{"$f":"'efter 9. og 10. klassetrin'!#REF!","v":{"$error":"#REF!"}},{"$f":"'efter 9. og 10. klassetrin'!#REF!","v":{"$error":"#REF!"}},{"$f":"'efter 9. og 10. klassetrin'!#REF!","v":{"$error":"#REF!"}},{"$f":"'efter 9. og 10. klassetrin'!#REF!","v":{"$error":"#REF!"}},{"$f":"'efter 9. og 10. klassetrin'!#REF!","v":{"$error":"#REF!"}},{"$f":"'efter 9. og 10. klassetrin'!#REF!","v":{"$error":"#REF!"}},{"$f":"'efter 9. og 10. klassetrin'!#REF!","v":{"$error":"#REF!"}},{"$f":"'efter 9. og 10. klassetrin'!#REF!","v":{"$error":"#REF!"}}]
[null,"Efter 10. klassetrin",{"$f":"#REF!","v":{"$error":"#REF!"}},null,{"$f":"#REF!","v":{"$error":"#REF!"}},null,{"$f":"#REF!","v":{"$error":"#REF!"}},null,{"$f":"#REF!","v":{"$error":"#REF!"}},null,{"$f":"#REF!","v":{"$error":"#REF!"}},null,{"$f":"#REF!","v":{"$error":"#REF!"}},null,{"$f":"#REF!","v":{"$error":"#REF!"}}]
[null,null,null,"1.",{"$f":"#REF!","v":{"$error":"#REF!"}},{"$f":"#REF!","v":{"$error":"#REF!"}},{"$f":"#REF!","v":{"$error":"#REF!"}},{"$f":"#REF!","v":{"$error":"#REF!"}},{"$f":"#REF!","v":{"$error":"#REF!"}},{"$f":"#REF!","v":{"$error":"#REF!"}},{"$f":"#REF!","v":{"$error":"#REF!"}},{"$f":"#REF!","v":{"$error":"#REF!"}},{"$f":"#REF!","v":{"$error":"#REF!"}},{"$f":"#REF!","v":{"$error":"#REF!"}},{"$f":"#REF!","v":{"$error":"#REF!"}},{"$f":"#REF!","v":{"$error":"#REF!"}}]
[null,null,null,"2.",{"$f":"#REF!","v":{"$error":"#REF!"}},{"$f":"#REF!","v":{"$error":"#REF!"}},{"$f":"#REF!","v":{"$error":"#REF!"}},{"$f":"#REF!","v":{"$error":"#REF!"}},{"$f":"#REF!","v":{"$error":"#REF!"}},{"$f":"#REF!","v":{"$error":"#REF!"}},{"$f":"#REF!","v":{"$error":"#REF!"}},{"$f":"#REF!","v":{"$error":"#REF!"}},{"$f":"#REF!","v":{"$error":"#REF!"}},{"$f":"#REF!","v":{"$error":"#REF!"}},{"$f":"#REF!","v":{"$error":"#REF!"}},{"$f":"#REF!","v":{"$error":"#REF!"}}]

{"sheet":"Kompetenceområde 2","index":5,"n_rows":24,"n_cols":16,"rows_kept":24,"cut":false,"hidden":true,"merged":[[17,12,17,13],[17,14,17,15],[21,1,23,1],[21,2,23,2],[21,4,21,5],[21,6,21,7],[21,8,21,9],[21,10,21,11],[21,12,21,13],[21,14,21,15],[17,1,20,1],[17,2,20,2],[17,4,17,5],[17,6,17,7],[17,8,17,9],[17,10,17,11],[11,12,11,13],[11,14,11,15],[14,1,16,1],[14,2,16,2],[14,4,14,5],[14,6,14,7],[14,8,14,9],[14,10,14,11],[14,12,14,13],[14,14,14,15],[11,1,13,1],[11,2,13,2],[11,4,11,5],[11,6,11,7],[11,8,11,9],[11,10,11,11],[7,4,7,15],[8,1,10,1],[8,2,10,2],[8,4,8,5],[8,6,8,7],[8,8,8,9],[8,10,8,11],[8,12,8,13],[8,14,8,15]]}
[]
[null,"Fag: ",{"$f":"#REF!","v":{"$error":"#REF!"}}]
[]
[null,"Færdigheds- og vidensmål"]
[]
[null,{"$f":"Kompetencemål!$B$8","v":"Økonomi"}]
[]
[null,"Klassetrin","Kompetencemål","Faser","Færdigheds- og vidensmål"]
[null,"Efter 2. klassetrin",{"$f":"#REF!","v":{"$error":"#REF!"}},null,{"$f":"#REF!","v":{"$error":"#REF!"}},null,{"$f":"#REF!","v":{"$error":"#REF!"}},null,{"$f":"#REF!","v":{"$error":"#REF!"}},null,{"$f":"#REF!","v":{"$error":"#REF!"}},null,{"$f":"#REF!","v":{"$error":"#REF!"}},null,{"$f":"#REF!","v":{"$error":"#REF!"}}]
[null,null,null,"1.",{"$f":"#REF!","v":{"$error":"#REF!"}},{"$f":"#REF!","v":{"$error":"#REF!"}},{"$f":"#REF!","v":{"$error":"#REF!"}},{"$f":"#REF!","v":{"$error":"#REF!"}},{"$f":"#REF!","v":{"$error":"#REF!"}},{"$f":"#REF!","v":{"$error":"#REF!"}},{"$f":"#REF!","v":{"$error":"#REF!"}},{"$f":"#REF!","v":{"$error":"#REF!"}},{"$f":"#REF!","v":{"$error":"#REF!"}},{"$f":"#REF!","v":{"$error":"#REF!"}},{"$f":"#REF!","v":{"$error":"#REF!"}},{"$f":"#REF!","v":{"$error":"#REF!"}}]
[null,null,null,"2.",{"$f":"#REF!","v":{"$error":"#REF!"}},{"$f":"#REF!","v":{"$error":"#REF!"}},{"$f":"#REF!","v":{"$error":"#REF!"}},{"$f":"#REF!","v":{"$error":"#REF!"}},{"$f":"#REF!","v":{"$error":"#REF!"}},{"$f":"#REF!","v":{"$error":"#REF!"}},{"$f":"#REF!","v":{"$error":"#REF!"}},{"$f":"#REF!","v":{"$error":"#REF!"}},{"$f":"#REF!","v":{"$error":"#REF!"}},{"$f":"#REF!","v":{"$error":"#REF!"}},{"$f":"#REF!","v":{"$error":"#REF!"}},{"$f":"#REF!","v":{"$error":"#REF!"}}]
[null,"Efter 4. klassetrin",{"$f":"#REF!","v":{"$error":"#REF!"}},null,{"$f":"#REF!","v":{"$error":"#REF!"}},null,{"$f":"#REF!","v":{"$error":"#REF!"}},null,{"$f":"#REF!","v":{"$error":"#REF!"}},null,{"$f":"#REF!","v":{"$error":"#REF!"}},null,{"$f":"#REF!","v":{"$error":"#REF!"}},null,{"$f":"#REF!","v":{"$error":"#REF!"}}]
[null,null,null,"1.",{"$f":"#REF!","v":{"$error":"#REF!"}},{"$f":"#REF!","v":{"$error":"#REF!"}},{"$f":"#REF!","v":{"$error":"#REF!"}},{"$f":"#REF!","v":{"$error":"#REF!"}},{"$f":"#REF!","v":{"$error":"#REF!"}},{"$f":"#REF!","v":{"$error":"#REF!"}},{"$f":"#REF!","v":{"$error":"#REF!"}},{"$f":"#REF!","v":{"$error":"#REF!"}},{"$f":"#REF!","v":{"$error":"#REF!"}},{"$f":"#REF!","v":{"$error":"#REF!"}},{"$f":"#REF!","v":{"$error":"#REF!"}},{"$f":"#REF!","v":{"$error":"#REF!"}}]
[null,null,null,"2.",{"$f":"#REF!","v":{"$error":"#REF!"}},{"$f":"#REF!","v":{"$error":"#REF!"}},{"$f":"#REF!","v":{"$error":"#REF!"}},{"$f":"#REF!","v":{"$error":"#REF!"}},{"$f":"#REF!","v":{"$error":"#REF!"}},{"$f":"#REF!","v":{"$error":"#REF!"}},{"$f":"#REF!","v":{"$error":"#REF!"}},{"$f":"#REF!","v":{"$error":"#REF!"}},{"$f":"#REF!","v":{"$error":"#REF!"}},{"$f":"#REF!","v":{"$error":"#REF!"}},{"$f":"#REF!","v":{"$error":"#REF!"}},{"$f":"#REF!","v":{"$error":"#REF!"}}]
[null,"Efter 6. klassetrin",{"$f":"#REF!","v":{"$error":"#REF!"}},null,{"$f":"#REF!","v":{"$error":"#REF!"}},null,{"$f":"#REF!","v":{"$error":"#REF!"}},null,{"$f":"#REF!","v":{"$error":"#REF!"}},null,{"$f":"#REF!","v":{"$error":"#REF!"}},null,{"$f":"#REF!","v":{"$error":"#REF!"}},null,{"$f":"#REF!","v":{"$error":"#REF!"}}]
[null,null,null,"1.",{"$f":"#REF!","v":{"$error":"#REF!"}},{"$f":"#REF!","v":{"$error":"#REF!"}},{"$f":"#REF!","v":{"$error":"#REF!"}},{"$f":"#REF!","v":{"$error":"#REF!"}},{"$f":"#REF!","v":{"$error":"#REF!"}},{"$f":"#REF!","v":{"$error":"#REF!"}},{"$f":"#REF!","v":{"$error":"#REF!"}},{"$f":"#REF!","v":{"$error":"#REF!"}},{"$f":"#REF!","v":{"$error":"#REF!"}},{"$f":"#REF!","v":{"$error":"#REF!"}},{"$f":"#REF!","v":{"$error":"#REF!"}},{"$f":"#REF!","v":{"$error":"#REF!"}}]
[null,null,null,"2.",{"$f":"#REF!","v":{"$error":"#REF!"}},{"$f":"#REF!","v":{"$error":"#REF!"}},{"$f":"#REF!","v":{"$error":"#REF!"}},{"$f":"#REF!","v":{"$error":"#REF!"}},{"$f":"#REF!","v":{"$error":"#REF!"}},{"$f":"#REF!","v":{"$error":"#REF!"}},{"$f":"#REF!","v":{"$error":"#REF!"}},{"$f":"#REF!","v":{"$error":"#REF!"}},{"$f":"#REF!","v":{"$error":"#REF!"}},{"$f":"#REF!","v":{"$error":"#REF!"}},{"$f":"#REF!","v":{"$error":"#REF!"}},{"$f":"#REF!","v":{"$error":"#REF!"}}]
[null,"Efter 9. klassetrin",{"$f":"'efter 9. og 10. klassetrin'!C12","v":"Eleven kan tage stilling til økonomiske forhold og handle i forhold til egen økonomi og samfundsøkonomien"},null,{"$f":"'efter 9. og 10. klassetrin'!E12:F12","v":"Privatøkonomi og forbrugeradfærd"},null,{"$f":"'efter 9. og 10. klassetrin'!G12:H12","v":"Økonomi og velfærd"},null,{"$f":"'efter 9. og 10. klassetrin'!I12:J12","v":"Samfundsøkonomiske sammenhænge"},null,{"$f":"'efter 9. og 10. klassetrin'!K12:L12","v":"Markedsøkonomi og blandingsøkonomi"},null,{"$f":"'efter 9. og 10. klassetrin'!M12:N12","v":"Økonomisk vækst og bæredygtighed"},null,{"$f":"'efter 9. og 10. klassetrin'!O12:P12","v":0}]
[null,null,null,"1.",{"$f":"'efter 9. og 10. klassetrin'!E13","v":"Eleven kan redegøre og diskutere for forbrugerens rolle og rettigheder i samfundet"},{"$f":"'efter 9. og 10. klassetrin'!F13","v":"Eleven har viden om forbrugeradfærd, forbrugerroller og forbrugerrettigheder"},{"$f":"'efter 9. og 10. klassetrin'!G13","v":"Eleven kan redegøre for velfærdsmodeller og velfærdsprincipper"},{"$f":"'efter 9. og 10. klassetrin'!H13","v":"Eleven har viden om velfærdsmodeller og velfærdsprincipper"},{"$f":"'efter 9. og 10. klassetrin'!I13","v":"Eleven kan redegøre for og diskutere sammenhænge i det økonomiske kredsløb"},{"$f":"'efter 9. og 10. klassetrin'!J13","v":"Eleven har viden om sammenhænge i det økonomiske kredsløb"},{"$f":"'efter 9. og 10. klassetrin'!K13","v":"Eleven kan med udgangspunkt i begreberne udbud og efterspørgsel redegøre for, hvordan markeder fungerer"},{"$f":"'efter 9. og 10. klassetrin'!L13","v":"Eleven har viden om principper i markedsøkonomien"},{"$f":"'efter 9. og 10. klassetrin'!M13","v":"Eleven kan redegøre for problemstillinger og muligheder vedrørende bæredygtighed og økonomisk vækst"},{"$f":"'efter 9. og 10. klassetrin'!N13","v":"Eleven har viden om bæredygtig udvikling og økonomisk vækst"},{"$f":"'efter 9. og 10. klassetrin'!O13","v":0},{"$f":"'efter 9. og 10. klassetrin'!P13","v":0}]
[null,null,null,"2.",{"$f":"'efter 9. og 10. klassetrin'!E14","v":"Eleven kan tage stilling til egen økonomi og analysere privatøkonomiske problemstillinger og handlemuligheder"},{"$f":"'efter 9. og 10. klassetrin'!F14","v":"Eleven har viden om privatøkonomiske problemstillinger og begreber"},{"$f":"'efter 9. og 10. klassetrin'!G14","v":"Eleven kan analysere og diskutere velfærdsproblematikker i sammenhæng med den økonomiske udvikling og globalisering"},{"$f":"'efter 9. og 10. klassetrin'!H14","v":"Eleven har viden om velfærdsproblematikker og økonomisk udvikling og globalisering"},{"$f":"'efter 9. og 10. klassetrin'!I14","v":"Eleven kan redegøre for og diskutere betydningen af økonomisk globalisering for det danske og tyske arbejdsmarked"},{"$f":"'efter 9. og 10. klassetrin'!J14","v":"Eleven har viden om sammenhængen mellem økonomisk globalisering og erhvervsstrukturer og arbejdsmarkedsforhold i Danmark og Tyskland"},{"$f":"'efter 9. og 10. klassetrin'!K14","v":"Eleven kan analysere og diskutere regulering af markedskræfterne"},{"$f":"'efter 9. og 10. klassetrin'!L14","v":"Eleven har viden om markedsøkonomi og blandingsøkonomi"},{"$f":"'efter 9. og 10. klassetrin'!M14","v":"Eleven kan analysere og diskutere sammenhænge mellem bæredygtighed og økonomisk vækst"},{"$f":"'efter 9. og 10. klassetrin'!N14","v":"Eleven har viden om sammenhænge mellem bæredygtighed og økonomisk vækst"},{"$f":"'efter 9. og 10. klassetrin'!O14","v":0},{"$f":"'efter 9. og 10. klassetrin'!P14","v":0}]
[null,null,null,"3.",{"$f":"'efter 9. og 10. klassetrin'!#REF!","v":{"$error":"#REF!"}},{"$f":"'efter 9. og 10. klassetrin'!#REF!","v":{"$error":"#REF!"}},{"$f":"'efter 9. og 10. klassetrin'!#REF!","v":{"$error":"#REF!"}},{"$f":"'efter 9. og 10. klassetrin'!#REF!","v":{"$error":"#REF!"}},{"$f":"'efter 9. og 10. klassetrin'!#REF!","v":{"$error":"#REF!"}},{"$f":"'efter 9. og 10. klassetrin'!#REF!","v":{"$error":"#REF!"}},{"$f":"'efter 9. og 10. klassetrin'!#REF!","v":{"$error":"#REF!"}},{"$f":"'efter 9. og 10. klassetrin'!#REF!","v":{"$error":"#REF!"}},{"$f":"'efter 9. og 10. klassetrin'!#REF!","v":{"$error":"#REF!"}},{"$f":"'efter 9. og 10. klassetrin'!#REF!","v":{"$error":"#REF!"}},{"$f":"'efter 9. og 10. klassetrin'!#REF!","v":{"$error":"#REF!"}},{"$f":"'efter 9. og 10. klassetrin'!#REF!","v":{"$error":"#REF!"}}]
[null,"Efter 10. klassetrin",{"$f":"#REF!","v":{"$error":"#REF!"}},null,{"$f":"#REF!","v":{"$error":"#REF!"}},null,{"$f":"#REF!","v":{"$error":"#REF!"}},null,{"$f":"#REF!","v":{"$error":"#REF!"}},null,{"$f":"#REF!","v":{"$error":"#REF!"}},null,{"$f":"#REF!","v":{"$error":"#REF!"}},null,{"$f":"#REF!","v":{"$error":"#REF!"}}]
[null,null,null,"1.",{"$f":"#REF!","v":{"$error":"#REF!"}},{"$f":"#REF!","v":{"$error":"#REF!"}},{"$f":"#REF!","v":{"$error":"#REF!"}},{"$f":"#REF!","v":{"$error":"#REF!"}},{"$f":"#REF!","v":{"$error":"#REF!"}},{"$f":"#REF!","v":{"$error":"#REF!"}},{"$f":"#REF!","v":{"$error":"#REF!"}},{"$f":"#REF!","v":{"$error":"#REF!"}},{"$f":"#REF!","v":{"$error":"#REF!"}},{"$f":"#REF!","v":{"$error":"#REF!"}},{"$f":"#REF!","v":{"$error":"#REF!"}},{"$f":"#REF!","v":{"$error":"#REF!"}}]
[null,null,null,"2.",{"$f":"#REF!","v":{"$error":"#REF!"}},{"$f":"#REF!","v":{"$error":"#REF!"}},{"$f":"#REF!","v":{"$error":"#REF!"}},{"$f":"#REF!","v":{"$error":"#REF!"}},{"$f":"#REF!","v":{"$error":"#REF!"}},{"$f":"#REF!","v":{"$error":"#REF!"}},{"$f":"#REF!","v":{"$error":"#REF!"}},{"$f":"#REF!","v":{"$error":"#REF!"}},{"$f":"#REF!","v":{"$error":"#REF!"}},{"$f":"#REF!","v":{"$error":"#REF!"}},{"$f":"#REF!","v":{"$error":"#REF!"}},{"$f":"#REF!","v":{"$error":"#REF!"}}]

{"sheet":"Kompetenceområde 3","index":6,"n_rows":24,"n_cols":16,"rows_kept":24,"cut":false,"hidden":true,"merged":[[17,12,17,13],[17,14,17,15],[21,1,23,1],[21,2,23,2],[21,4,21,5],[21,6,21,7],[21,8,21,9],[21,10,21,11],[21,12,21,13],[21,14,21,15],[17,1,20,1],[17,2,20,2],[17,4,17,5],[17,6,17,7],[17,8,17,9],[17,10,17,11],[11,12,11,13],[11,14,11,15],[14,1,16,1],[14,2,16,2],[14,4,14,5],[14,6,14,7],[14,8,14,9],[14,10,14,11],[14,12,14,13],[14,14,14,15],[11,1,13,1],[11,2,13,2],[11,4,11,5],[11,6,11,7],[11,8,11,9],[11,10,11,11],[7,4,7,15],[8,1,10,1],[8,2,10,2],[8,4,8,5],[8,6,8,7],[8,8,8,9],[8,10,8,11],[8,12,8,13],[8,14,8,15]]}
[]
[null,"Fag: ",{"$f":"#REF!","v":{"$error":"#REF!"}}]
[]
[null,"Færdigheds- og vidensmål"]
[]
[null,{"$f":"Kompetencemål!$B$9","v":"Ung i en verden under forandring"}]
[]
[null,"Klassetrin","Kompetencemål","Faser","Færdigheds- og vidensmål"]
[null,"Efter 2. klassetrin",{"$f":"#REF!","v":{"$error":"#REF!"}},null,{"$f":"#REF!","v":{"$error":"#REF!"}},null,{"$f":"#REF!","v":{"$error":"#REF!"}},null,{"$f":"#REF!","v":{"$error":"#REF!"}},null,{"$f":"#REF!","v":{"$error":"#REF!"}},null,{"$f":"#REF!","v":{"$error":"#REF!"}},null,{"$f":"#REF!","v":{"$error":"#REF!"}}]
[null,null,null,"1.",{"$f":"#REF!","v":{"$error":"#REF!"}},{"$f":"#REF!","v":{"$error":"#REF!"}},{"$f":"#REF!","v":{"$error":"#REF!"}},{"$f":"#REF!","v":{"$error":"#REF!"}},{"$f":"#REF!","v":{"$error":"#REF!"}},{"$f":"#REF!","v":{"$error":"#REF!"}},{"$f":"#REF!","v":{"$error":"#REF!"}},{"$f":"#REF!","v":{"$error":"#REF!"}},{"$f":"#REF!","v":{"$error":"#REF!"}},{"$f":"#REF!","v":{"$error":"#REF!"}},{"$f":"#REF!","v":{"$error":"#REF!"}},{"$f":"#REF!","v":{"$error":"#REF!"}}]
[null,null,null,"2.",{"$f":"#REF!","v":{"$error":"#REF!"}},{"$f":"#REF!","v":{"$error":"#REF!"}},{"$f":"#REF!","v":{"$error":"#REF!"}},{"$f":"#REF!","v":{"$error":"#REF!"}},{"$f":"#REF!","v":{"$error":"#REF!"}},{"$f":"#REF!","v":{"$error":"#REF!"}},{"$f":"#REF!","v":{"$error":"#REF!"}},{"$f":"#REF!","v":{"$error":"#REF!"}},{"$f":"#REF!","v":{"$error":"#REF!"}},{"$f":"#REF!","v":{"$error":"#REF!"}},{"$f":"#REF!","v":{"$error":"#REF!"}},{"$f":"#REF!","v":{"$error":"#REF!"}}]
[null,"Efter 4. klassetrin",{"$f":"#REF!","v":{"$error":"#REF!"}},null,{"$f":"#REF!","v":{"$error":"#REF!"}},null,{"$f":"#REF!","v":{"$error":"#REF!"}},null,{"$f":"#REF!","v":{"$error":"#REF!"}},null,{"$f":"#REF!","v":{"$error":"#REF!"}},null,{"$f":"#REF!","v":{"$error":"#REF!"}},null,{"$f":"#REF!","v":{"$error":"#REF!"}}]
[null,null,null,"1.",{"$f":"#REF!","v":{"$error":"#REF!"}},{"$f":"#REF!","v":{"$error":"#REF!"}},{"$f":"#REF!","v":{"$error":"#REF!"}},{"$f":"#REF!","v":{"$error":"#REF!"}},{"$f":"#REF!","v":{"$error":"#REF!"}},{"$f":"#REF!","v":{"$error":"#REF!"}},{"$f":"#REF!","v":{"$error":"#REF!"}},{"$f":"#REF!","v":{"$error":"#REF!"}},{"$f":"#REF!","v":{"$error":"#REF!"}},{"$f":"#REF!","v":{"$error":"#REF!"}},{"$f":"#REF!","v":{"$error":"#REF!"}},{"$f":"#REF!","v":{"$error":"#REF!"}}]
[null,null,null,"2.",{"$f":"#REF!","v":{"$error":"#REF!"}},{"$f":"#REF!","v":{"$error":"#REF!"}},{"$f":"#REF!","v":{"$error":"#REF!"}},{"$f":"#REF!","v":{"$error":"#REF!"}},{"$f":"#REF!","v":{"$error":"#REF!"}},{"$f":"#REF!","v":{"$error":"#REF!"}},{"$f":"#REF!","v":{"$error":"#REF!"}},{"$f":"#REF!","v":{"$error":"#REF!"}},{"$f":"#REF!","v":{"$error":"#REF!"}},{"$f":"#REF!","v":{"$error":"#REF!"}},{"$f":"#REF!","v":{"$error":"#REF!"}},{"$f":"#REF!","v":{"$error":"#REF!"}}]
[null,"Efter 6. klassetrin",{"$f":"#REF!","v":{"$error":"#REF!"}},null,{"$f":"#REF!","v":{"$error":"#REF!"}},null,{"$f":"#REF!","v":{"$error":"#REF!"}},null,{"$f":"#REF!","v":{"$error":"#REF!"}},null,{"$f":"#REF!","v":{"$error":"#REF!"}},null,{"$f":"#REF!","v":{"$error":"#REF!"}},null,{"$f":"#REF!","v":{"$error":"#REF!"}}]
[null,null,null,"1.",{"$f":"#REF!","v":{"$error":"#REF!"}},{"$f":"#REF!","v":{"$error":"#REF!"}},{"$f":"#REF!","v":{"$error":"#REF!"}},{"$f":"#REF!","v":{"$error":"#REF!"}},{"$f":"#REF!","v":{"$error":"#REF!"}},{"$f":"#REF!","v":{"$error":"#REF!"}},{"$f":"#REF!","v":{"$error":"#REF!"}},{"$f":"#REF!","v":{"$error":"#REF!"}},{"$f":"#REF!","v":{"$error":"#REF!"}},{"$f":"#REF!","v":{"$error":"#REF!"}},{"$f":"#REF!","v":{"$error":"#REF!"}},{"$f":"#REF!","v":{"$error":"#REF!"}}]
[null,null,null,"2.",{"$f":"#REF!","v":{"$error":"#REF!"}},{"$f":"#REF!","v":{"$error":"#REF!"}},{"$f":"#REF!","v":{"$error":"#REF!"}},{"$f":"#REF!","v":{"$error":"#REF!"}},{"$f":"#REF!","v":{"$error":"#REF!"}},{"$f":"#REF!","v":{"$error":"#REF!"}},{"$f":"#REF!","v":{"$error":"#REF!"}},{"$f":"#REF!","v":{"$error":"#REF!"}},{"$f":"#REF!","v":{"$error":"#REF!"}},{"$f":"#REF!","v":{"$error":"#REF!"}},{"$f":"#REF!","v":{"$error":"#REF!"}},{"$f":"#REF!","v":{"$error":"#REF!"}}]
[null,"Efter 9. klassetrin",{"$f":"'efter 9. og 10. klassetrin'!C12","v":"Eleven kan tage stilling til økonomiske forhold og handle i forhold til egen økonomi og samfundsøkonomien"},null,{"$f":"'efter 9. og 10. klassetrin'!#REF!","v":{"$error":"#REF!"}},null,{"$f":"'efter 9. og 10. klassetrin'!#REF!","v":{"$error":"#REF!"}},null,{"$f":"'efter 9. og 10. klassetrin'!#REF!","v":{"$error":"#REF!"}},null,{"$f":"'efter 9. og 10. klassetrin'!#REF!","v":{"$error":"#REF!"}},null,{"$f":"'efter 9. og 10. klassetrin'!#REF!","v":{"$error":"#REF!"}},null,{"$f":"'efter 9. og 10. klassetrin'!#REF!","v":{"$error":"#REF!"}}]
[null,null,null,"1.",{"$f":"'efter 9. og 10. klassetrin'!#REF!","v":{"$error":"#REF!"}},{"$f":"'efter 9. og 10. klassetrin'!#REF!","v":{"$error":"#REF!"}},{"$f":"'efter 9. og 10. klassetrin'!#REF!","v":{"$error":"#REF!"}},{"$f":"'efter 9. og 10. klassetrin'!#REF!","v":{"$error":"#REF!"}},{"$f":"'efter 9. og 10. klassetrin'!#REF!","v":{"$error":"#REF!"}},{"$f":"'efter 9. og 10. klassetrin'!#REF!","v":{"$error":"#REF!"}},{"$f":"'efter 9. og 10. klassetrin'!#REF!","v":{"$error":"#REF!"}},{"$f":"'efter 9. og 10. klassetrin'!#REF!","v":{"$error":"#REF!"}},{"$f":"'efter 9. og 10. klassetrin'!#REF!","v":{"$error":"#REF!"}},{"$f":"'efter 9. og 10. klassetrin'!#REF!","v":{"$error":"#REF!"}},{"$f":"'efter 9. og 10. klassetrin'!#REF!","v":{"$error":"#REF!"}},{"$f":"'efter 9. og 10. klassetrin'!#REF!","v":{"$error":"#REF!"}}]
[null,null,null,"2.",{"$f":"'efter 9. og 10. klassetrin'!#REF!","v":{"$error":"#REF!"}},{"$f":"'efter 9. og 10. klassetrin'!#REF!","v":{"$error":"#REF!"}},{"$f":"'efter 9. og 10. klassetrin'!#REF!","v":{"$error":"#REF!"}},{"$f":"'efter 9. og 10. klassetrin'!#REF!","v":{"$error":"#REF!"}},{"$f":"'efter 9. og 10. klassetrin'!#REF!","v":{"$error":"#REF!"}},{"$f":"'efter 9. og 10. klassetrin'!#REF!","v":{"$error":"#REF!"}},{"$f":"'efter 9. og 10. klassetrin'!#REF!","v":{"$error":"#REF!"}},{"$f":"'efter 9. og 10. klassetrin'!#REF!","v":{"$error":"#REF!"}},{"$f":"'efter 9. og 10. klassetrin'!#REF!","v":{"$error":"#REF!"}},{"$f":"'efter 9. og 10. klassetrin'!#REF!","v":{"$error":"#REF!"}},{"$f":"'efter 9. og 10. klassetrin'!#REF!","v":{"$error":"#REF!"}},{"$f":"'efter 9. og 10. klassetrin'!#REF!","v":{"$error":"#REF!"}}]
[null,null,null,"3.",{"$f":"'efter 9. og 10. klassetrin'!#REF!","v":{"$error":"#REF!"}},{"$f":"'efter 9. og 10. klassetrin'!#REF!","v":{"$error":"#REF!"}},{"$f":"'efter 9. og 10. klassetrin'!#REF!","v":{"$error":"#REF!"}},{"$f":"'efter 9. og 10. klassetrin'!#REF!","v":{"$error":"#REF!"}},{"$f":"'efter 9. og 10. klassetrin'!#REF!","v":{"$error":"#REF!"}},{"$f":"'efter 9. og 10. klassetrin'!#REF!","v":{"$error":"#REF!"}},{"$f":"'efter 9. og 10. klassetrin'!#REF!","v":{"$error":"#REF!"}},{"$f":"'efter 9. og 10. klassetrin'!#REF!","v":{"$error":"#REF!"}},{"$f":"'efter 9. og 10. klassetrin'!#REF!","v":{"$error":"#REF!"}},{"$f":"'efter 9. og 10. klassetrin'!#REF!","v":{"$error":"#REF!"}},{"$f":"'efter 9. og 10. klassetrin'!#REF!","v":{"$error":"#REF!"}},{"$f":"'efter 9. og 10. klassetrin'!#REF!","v":{"$error":"#REF!"}}]
[null,"Efter 10. klassetrin",{"$f":"#REF!","v":{"$error":"#REF!"}},null,{"$f":"#REF!","v":{"$error":"#REF!"}},null,{"$f":"#REF!","v":{"$error":"#REF!"}},null,{"$f":"#REF!","v":{"$error":"#REF!"}},null,{"$f":"#REF!","v":{"$error":"#REF!"}},null,{"$f":"#REF!","v":{"$error":"#REF!"}},null,{"$f":"#REF!","v":{"$error":"#REF!"}}]
[null,null,null,"1.",{"$f":"#REF!","v":{"$error":"#REF!"}},{"$f":"#REF!","v":{"$error":"#REF!"}},{"$f":"#REF!","v":{"$error":"#REF!"}},{"$f":"#REF!","v":{"$error":"#REF!"}},{"$f":"#REF!","v":{"$error":"#REF!"}},{"$f":"#REF!","v":{"$error":"#REF!"}},{"$f":"#REF!","v":{"$error":"#REF!"}},{"$f":"#REF!","v":{"$error":"#REF!"}},{"$f":"#REF!","v":{"$error":"#REF!"}},{"$f":"#REF!","v":{"$error":"#REF!"}},{"$f":"#REF!","v":{"$error":"#REF!"}},{"$f":"#REF!","v":{"$error":"#REF!"}}]
[null,null,null,"2.",{"$f":"#REF!","v":{"$error":"#REF!"}},{"$f":"#REF!","v":{"$error":"#REF!"}},{"$f":"#REF!","v":{"$error":"#REF!"}},{"$f":"#REF!","v":{"$error":"#REF!"}},{"$f":"#REF!","v":{"$error":"#REF!"}},{"$f":"#REF!","v":{"$error":"#REF!"}},{"$f":"#REF!","v":{"$error":"#REF!"}},{"$f":"#REF!","v":{"$error":"#REF!"}},{"$f":"#REF!","v":{"$error":"#REF!"}},{"$f":"#REF!","v":{"$error":"#REF!"}},{"$f":"#REF!","v":{"$error":"#REF!"}},{"$f":"#REF!","v":{"$error":"#REF!"}}]

{"sheet":"Kompetenceområde 4","index":7,"n_rows":24,"n_cols":5,"rows_kept":24,"cut":false,"hidden":true,"merged":[[7,4,7,15],[8,1,10,1],[8,2,10,2],[8,4,8,5],[8,6,8,7],[8,8,8,9],[8,10,8,11],[8,12,8,13],[8,14,8,15],[11,12,11,13],[11,14,11,15],[14,1,16,1],[14,2,16,2],[14,4,14,5],[14,6,14,7],[14,8,14,9],[14,10,14,11],[14,12,14,13],[14,14,14,15],[11,1,13,1],[11,2,13,2],[11,4,11,5],[11,6,11,7],[11,8,11,9],[11,10,11,11],[17,12,17,13],[17,14,17,15],[21,1,23,1],[21,2,23,2],[21,4,21,5],[21,6,21,7],[21,8,21,9],[21,10,21,11],[21,12,21,13],[21,14,21,15],[17,1,20,1],[17,2,20,2],[17,4,17,5],[17,6,17,7],[17,8,17,9],[17,10,17,11]]}
[]
[null,"Fag: ",{"$f":"#REF!","v":{"$error":"#REF!"}}]
[]
[null,"Færdigheds- og vidensmål"]
[]
[null,{"$f":"Kompetencemål!#REF!","v":{"$error":"#REF!"}}]
[]
[null,"Klassetrin","Kompetencemål","Faser","Færdigheds- og vidensmål"]
[null,"Efter 2. klassetrin",{"$f":"Kompetencemål!#REF!","v":{"$error":"#REF!"}}]
[null,null,null,"1."]
[null,null,null,"2."]
[null,"Efter 4. klassetrin",{"$f":"Kompetencemål!#REF!","v":{"$error":"#REF!"}}]
[null,null,null,"1."]
[null,null,null,"2."]
[null,"Efter 6. klassetrin",{"$f":"Kompetencemål!#REF!","v":{"$error":"#REF!"}}]
[null,null,null,"1."]
[null,null,null,"2."]
[null,"Efter 9. klassetrin",{"$f":"Kompetencemål!#REF!","v":{"$error":"#REF!"}}]
[null,null,null,"1."]
[null,null,null,"2."]
[null,null,null,"3."]
[null,"Efter 10. klassetrin",{"$f":"Kompetencemål!#REF!","v":{"$error":"#REF!"}}]
[null,null,null,"1."]
[null,null,null,"2."]

{"sheet":"Kompetenceområde 4 ikke tilknyt","index":8,"n_rows":23,"n_cols":15,"rows_kept":23,"cut":false,"hidden":true,"merged":[[17,12,17,13],[17,14,17,15],[17,1,19,1],[17,2,19,2],[17,4,17,5],[17,6,17,7],[17,8,17,9],[17,10,17,11],[11,12,11,13],[11,14,11,15],[14,1,16,1],[14,2,16,2],[14,4,14,5],[14,6,14,7],[14,8,14,9],[14,10,14,11],[14,12,14,13],[14,14,14,15],[11,1,13,1],[11,2,13,2],[11,4,11,5],[11,6,11,7],[11,8,11,9],[11,10,11,11],[7,4,7,15],[8,1,10,1],[8,2,10,2],[8,4,8,5],[8,6,8,7],[8,8,8,9],[8,10,8,11],[8,12,8,13],[8,14,8,15],[20,10,20,11],[20,12,20,13],[20,14,20,15],[20,1,22,1],[20,2,22,2],[20,4,20,5],[20,6,20,7],[20,8,20,9]]}
[]
[null,"Fag: ",{"$f":"#REF!","v":{"$error":"#REF!"}}]
[]
[null,"Færdigheds- og vidensmål"]
[]
[null,{"$f":"Kompetencemål!#REF!","v":{"$error":"#REF!"}}]
[]
[null,"Klassetrin","Kompetencemål","Faser","Færdigheds- og vidensmål"]
[null,"Efter 2. klassetrin",null,null,"<mål/stofområde>",null,"<mål/stofområde>",null,"<mål/stofområde>",null,"<mål/stofområde>",null,"<mål/stofområde>",null,"<mål/stofområde>"]
[null,null,null,"1."]
[null,null,null,"2."]
[null,"Efter 4. klassetrin",null,null,"<mål/stofområde>",null,"<mål/stofområde>",null,"<mål/stofområde>",null,"<mål/stofområde>",null,"<mål/stofområde>",null,"<mål/stofområde>"]
[null,null,null,"1."]
[null,null,null,"2."]
[null,"Efter 6. klassetrin",null,null,"<mål/stofområde>",null,"<mål/stofområde>",null,"<mål/stofområde>",null,"<mål/stofområde>",null,"<mål/stofområde>",null,"<mål/stofområde>"]
[null,null,null,"1."]
[null,null,null,"2."]
[null,"Efter 9. klassetrin",null,null,"<mål/stofområde>",null,"<mål/stofområde>",null,"<mål/stofområde>",null,"<mål/stofområde>",null,"<mål/stofområde>",null,"<mål/stofområde>"]
[null,null,null,"1."]
[null,null,null,"2."]
[null,"Efter 10. klassetrin",null,null,"<mål/stofområde>",null,"<mål/stofområde>",null,"<mål/stofområde>",null,"<mål/stofområde>",null,"<mål/stofområde>",null,"<mål/stofområde>"]
[null,null,null,"1."]
[null,null,null,"2."]

{"sheet":"definitioner","index":9,"n_rows":18,"n_cols":4,"rows_kept":18,"cut":false,"hidden":true,"merged":[]}
["klassetrin",null,"Fag","Fra"]
["efter 2. klassetrin",null,"Billedkunst","venter"]
["efter 4. klassetrin",null,"Biologi","efter 9. klassetrin+"]
["efter 6. klassetrin",null,"Dansk","alle"]
["efter 9. klassetrin",null,"Engelsk","efter 4. klassetrin+"]
["efter 10. klassetrin",null,"Fysik/kemi","efter 9. klassetrin+"]
[null,null,"Geografi","efter 9. klassetrin+"]
[null,null,"Historie","efter 4. klassetrin+"]
[null,null,"Hjemkundskab","kun efter 7. klassetrin (1 fase)"]
[null,null,"Håndgerning","venter"]
[null,null,"Idræt","alle"]
[null,null,"Kristendomskundskab","alle"]
[null,null,"Matematik","alle"]
[null,null,"Musik","alle"]
[null,null,"Natek","efter 4. klassetrin til med efter 6. klassetrin"]
[null,null,"Samfundsfag","efter 10. klasse"]
[null,null,"Sløjd","venter"]
[null,null,"Tysk","alle"]